bitfinex/quotes_BTCUSD_20250910
["timestamp","ask_amount","ask_price","bid_price","bid_amount"]
[1757469877343,1.06943656,111460.0,111450.0,0.18006212]
[1757469877601,1.97563281,111460.0,111450.0,0.18006212]
[1757469877847,1.97563281,111460.0,111450.0,0.18214212]
[1757469877848,2.06540497,111460.0,111450.0,0.18214212]
[1757469878468,2.06540497,111460.0,111450.0,0.11153]
[1757469879204,1.71689841,111460.0,111450.0,0.10855]
[1757469879441,2.06540497,111460.0,111450.0,0.10855]
[1757469879649,2.56540497,111460.0,111450.0,0.10855]
[1757469880350,2.56540497,111460.0,111450.0,0.11153]
[1757469881278,2.57947787,111460.0,111450.0,0.11253]
[1757469881733,2.64847787,111460.0,111450.0,0.11253]
[1757469882170,2.29997131,111460.0,111450.0,0.11153]
[1757469882382,2.55907489,111460.0,111450.0,0.11153]
[1757469883159,2.38482161,111460.0,111450.0,0.11153]
[1757469883852,2.55907489,111460.0,111450.0,0.11153]
[1757469884056,2.56007489,111460.0,111450.0,0.11153]
[1757469884669,2.55907489,111460.0,111450.0,0.11153]
[1757469885218,2.56007489,111460.0,111450.0,0.11153]
[1757469886741,2.56007489,111460.0,111450.0,0.10855]
[1757469886917,2.65199088,111460.0,111450.0,0.10855]
[1757469889135,2.65397088,111460.0,111450.0,0.10855]
[1757469889619,2.65199088,111460.0,111450.0,0.10855]
[1757469890369,2.65397088,111460.0,111450.0,0.10855]
[1757469891430,2.65712088,111460.0,111450.0,0.10855]
[1757469891642,2.65712088,111460.0,111450.0,0.00208]
[1757469894154,2.30861432,111460.0,111450.0,0.00208]
[1757469894371,2.65712088,111460.0,111450.0,0.00208]
[1757469895123,2.65397088,111460.0,111450.0,0.00208]
[1757469896449,2.65712088,111460.0,111450.0,0.00208]
[1757469896948,2.30861432,111460.0,111450.0,0.00208]
[1757469897135,2.65712088,111460.0,111450.0,0.00208]
[1757469897350,2.15712088,111460.0,111450.0,0.00208]
[1757469897961,1.9828676,111460.0,111450.0,0.00208]
[1757469898206,1.80546432,111460.0,111450.0,0.17633328]
[1757469898412,1.65228432,111460.0,111450.0,0.28345328]
[1757469898640,1.71156833,111460.0,111450.0,0.28345328]
[1757469898956,1.71156833,111460.0,111450.0,0.28033328]
[1757469899184,1.71354833,111460.0,111450.0,0.28033328]
[1757469899602,0.17945266,111450.0,111440.0,0.04819093]
[1757469899807,0.42256865,111450.0,111440.0,0.15427093]
[1757469900017,0.42256865,111450.0,111440.0,0.32852421]
[1757469900221,0.51448464,111450.0,111440.0,0.15427093]
[1757469900427,0.51646464,111450.0,111440.0,0.22452421]
[1757469900632,0.42256865,111450.0,111440.0,0.22452421]
[1757469900891,0.42256865,111450.0,111440.0,0.33164421]
[1757469901323,0.42256865,111450.0,111440.0,0.32852421]
[1757469901527,0.42769865,111450.0,111440.0,0.32852421]
[1757469901746,0.42454865,111450.0,111440.0,0.32952421]
[1757469901982,0.51646464,111450.0,111440.0,0.22552421]
[1757469902203,0.51961464,111450.0,111440.0,0.22552421]
[1757469902409,0.42256865,111450.0,111440.0,0.22552421]
[1757469903484,0.4314665,111450.0,111440.0,0.22552421]
[1757469903703,0.4334465,111450.0,111440.0,0.00308]
[1757469903868,0.4365965,111450.0,111440.0,0.17733328]
[1757469904172,0.4314665,111450.0,111440.0,0.17733328]
[1757469904398,0.52338249,111450.0,111440.0,0.17733328]
[1757469904576,0.37218249,111450.0,111440.0,0.18045328]
[1757469904773,0.4314665,111450.0,111440.0,0.17633328]
[1757469905051,0.4324665,111450.0,111440.0,0.17633328]
[1757469905426,0.4344465,111450.0,111440.0,0.17633328]
[1757469905919,0.5034465,111450.0,111440.0,0.17633328]
[1757469907153,0.5065965,111450.0,111440.0,0.00208]
[1757469907358,0.59851249,111450.0,111440.0,0.17633328]
[1757469912097,0.44731249,111450.0,111440.0,0.17633328]
[1757469912303,0.59851249,111450.0,111440.0,0.17633328]
[1757469913638,0.5065965,111450.0,111440.0,0.17633328]
[1757469915423,0.5014665,111450.0,111440.0,0.17633328]
[1757469916289,0.5035865,111450.0,111440.0,0.17633328]
[1757469916517,0.5065165,111450.0,111440.0,0.17633328]
[1757469918854,0.72946877,111440.0,111430.0,0.10712]
[1757469919062,0.97254476,111440.0,111430.0,0.28357257]
[1757469920778,0.97254476,111440.0,111430.0,0.28457257]
[1757469920991,0.82138476,111440.0,111430.0,0.28457257]
[1757469921400,0.97254476,111440.0,111430.0,0.10719929]
[1757469921612,0.97254476,111440.0,111430.0,0.28145257]
[1757469921825,0.97254476,111440.0,111430.0,0.28468257]
[1757469922036,0.97254476,111440.0,111430.0,0.28145257]
[1757469922880,0.97759476,111440.0,111430.0,0.17745257]
[1757469923103,1.58376403,111440.0,111430.0,0.00113929]
[1757469923315,1.76433754,111440.0,111430.0,0.00113929]
[1757469923570,1.76433754,111440.0,111400.0,0.33388109]
[1757469923571,0.52951709,111410.0,111400.0,0.33388109]
[1757469923783,0.59851709,111410.0,111400.0,0.35056656]
[1757469923995,0.74967709,111410.0,111400.0,0.45356656]
[1757469924179,0.84159308,111410.0,111400.0,0.45356656]
[1757469924754,0.85051564,111410.0,111400.0,0.45356656]
[1757469925864,0.85051564,111410.0,111400.0,0.45556656]
[1757469926413,0.85051564,111410.0,111400.0,0.45233656]
[1757469927034,0.85263564,111410.0,111400.0,0.10383]
[1757469927255,0.94496862,111410.0,111400.0,0.00506]
[1757469927471,0.94496862,111410.0,111400.0,0.17725328]
[1757469927691,0.94496862,111410.0,111400.0,0.17931328]
[1757469928099,0.94496862,111410.0,111400.0,0.17631328]
[1757469928307,0.94496862,111410.0,111400.0,0.11828658]
[1757469928729,0.85556564,111410.0,111400.0,0.11828658]
[1757469928938,0.85556564,111410.0,111400.0,0.11928658]
[1757469930297,0.85556564,111410.0,111400.0,0.11722658]
[1757469930967,0.85560564,111410.0,111400.0,0.11722658]
[1757469931178,0.70560564,111410.0,111400.0,0.11722658]
[1757469932979,0.70560564,111410.0,111400.0,0.11622658]
[1757469934271,0.94752163,111410.0,111390.0,0.14321501]
[1757469934483,0.4226492,111400.0,111390.0,0.11622658]
[1757469934787,0.52954933,111390.0,111380.0,0.21922658]
[1757469934991,0.68074933,111390.0,111380.0,0.22128658]
[1757469935129,0.68074933,111390.0,111380.0,0.24827858]
[1757469935786,0.68074933,111390.0,111380.0,0.24874298]
[1757469936110,0.68074933,111390.0,111380.0,0.37399219]
[1757469937768,0.68074933,111390.0,111380.0,0.37599219]
[1757469938717,0.68074933,111390.0,111380.0,0.37699219]
[1757469942935,0.35,111390.0,111380.0,0.7453437]
[1757469943162,0.3512,111390.0,111380.0,0.77047028]
[1757469943382,0.2,111390.0,111380.0,0.77047028]
[1757469943627,0.3512,111390.0,111380.0,0.77047028]
[1757469946387,0.3512,111390.0,111380.0,0.6979108]
[1757469947980,0.3512,111390.0,111380.0,0.9674108]
[1757469948459,0.3512,111390.0,111380.0,1.03179189]
[1757469949430,0.53074933,111390.0,111380.0,1.02856189]
[1757469949631,0.53272933,111390.0,111380.0,0.92879189]
[1757469949825,0.2,111390.0,111380.0,0.92879189]
[1757469950071,0.35116,111390.0,111380.0,1.11944788]
[1757469950886,0.35116,111390.0,111380.0,1.02753189]
[1757469956970,0.35116,111390.0,111380.0,1.02768576]
[1757469957784,0.2,111390.0,111380.0,1.02768576]
[1757469958012,0.35116,111390.0,111380.0,1.02768576]
[1757469958215,0.35116,111390.0,111380.0,0.9631508]
[1757469958835,0.35116,111390.0,111380.0,1.05506679]
[1757469959602,0.68577933,111390.0,111380.0,0.09499481]
[1757469959814,0.68577933,111390.0,111380.0,0.11969098]
[1757469960206,0.68577933,111390.0,111380.0,0.23591756]
[1757469960826,0.77769532,111390.0,111380.0,0.0034644]
[1757469961074,0.87447663,111390.0,111380.0,0.0034644]
[1757469961295,1.7373857,111390.0,111380.0,0.0034644]
[1757469961522,1.74370232,111390.0,111380.0,0.0034644]
[1757469961752,1.95946232,111390.0,111380.0,0.0034644]
[1757469962111,2.05357905,111390.0,111380.0,0.0034644]
[1757469963051,2.05357905,111390.0,111380.0,0.0014644]
[1757469963692,2.05357905,111390.0,111380.0,0.0004644]
[1757469964152,1.78619247,111390.0,111380.0,0.0004644]
[1757469964377,1.78619247,111390.0,111380.0,0.11669098]
[1757469964378,1.78782086,111390.0,111380.0,0.11669098]
[1757469964560,1.78782086,111390.0,111380.0,0.0004644]
[1757469964991,1.78682086,111390.0,111380.0,0.0004644]
[1757469965201,1.77832086,111390.0,111380.0,0.0004644]
[1757469965404,1.77932086,111390.0,111380.0,0.0004644]
[1757469965658,1.78232086,111390.0,111380.0,0.0004644]
[1757469965857,1.87323685,111390.0,111380.0,0.11669098]
[1757469966071,1.55023086,111390.0,111380.0,0.11669098]
[1757469966289,1.70557424,111390.0,111380.0,0.11669098]
[1757469966702,1.67857313,111390.0,111380.0,0.11669098]
[1757469967079,1.67851724,111390.0,111380.0,0.11669098]
[1757469967491,1.67551724,111390.0,111380.0,0.11669098]
[1757469968266,1.67651724,111390.0,111380.0,0.11669098]
[1757469968952,1.67351724,111390.0,111380.0,0.11669098]
[1757469969321,1.67451724,111390.0,111380.0,0.0004644]
[1757469969530,1.67451724,111390.0,111380.0,0.11669098]
[1757469969735,1.67351724,111390.0,111380.0,0.11669098]
[1757469971594,1.76543323,111390.0,111380.0,0.11669098]
[1757469974024,1.76543323,111390.0,111380.0,0.0004644]
[1757469974229,1.95898981,111390.0,111380.0,0.0004644]
[1757469975319,1.84276323,111390.0,111380.0,0.0004644]
[1757469976381,1.8427514,111390.0,111380.0,0.0004644]
[1757469977187,1.7654214,111390.0,111380.0,0.0004644]
[1757469977510,1.52234541,111390.0,111380.0,0.0004644]
[1757469977974,1.66500541,111390.0,111380.0,0.0004644]
[1757469978908,1.51384541,111390.0,111380.0,0.0004644]
[1757469979115,1.66500541,111390.0,111380.0,0.0004644]
[1757469979364,1.51384541,111390.0,111380.0,0.0004644]
[1757469979536,1.6057614,111390.0,111380.0,0.0004644]
[1757469979759,1.7569214,111390.0,111380.0,0.0004644]
[1757469982580,1.6057614,111390.0,111380.0,0.0004644]
[1757469982806,1.7569214,111390.0,111380.0,0.0004644]
[1757469983011,1.6057614,111390.0,111380.0,0.0004644]
[1757469983221,1.7569214,111390.0,111380.0,0.0004644]
[1757469984400,1.6057614,111390.0,111380.0,0.0004644]
[1757469984615,1.7569214,111390.0,111380.0,0.0004644]
[1757469985828,1.6057614,111390.0,111380.0,0.0004644]
[1757469986035,1.7568814,111390.0,111380.0,0.0004644]
[1757469986243,1.87310798,111390.0,111380.0,0.0004644]
[1757469987912,1.87410798,111390.0,111380.0,0.0004644]
[1757469988353,1.88041978,111390.0,111380.0,0.0004644]
[1757469988516,1.93865096,111390.0,111380.0,0.0004644]
[1757469989038,1.94065096,111390.0,111380.0,0.0004644]
[1757469989974,1.7661932,111390.0,111380.0,0.0004644]
[1757469990172,1.94065096,111390.0,111380.0,0.0004644]
[1757469991445,1.78953096,111390.0,111380.0,0.0004644]
[1757469991608,1.67427721,111390.0,111380.0,0.17492216]
[1757469991845,1.52006721,111390.0,111380.0,0.17703216]
[1757469992070,1.67118721,111390.0,111380.0,0.17703216]
[1757469992220,1.52315721,111390.0,111380.0,0.17703216]
[1757469992424,1.67427721,111390.0,111380.0,0.17703216]
[1757469992860,1.67427721,111390.0,111380.0,0.17492216]
[1757469993338,1.7661932,111390.0,111380.0,0.17492216]
[1757469993537,1.7598814,111390.0,111380.0,0.17492216]
[1757469993746,1.67428669,111390.0,111380.0,0.17492216]
[1757469996794,1.67428669,111390.0,111380.0,0.0004644]
[1757469997051,1.67428669,111390.0,111380.0,0.17492216]
[1757469998737,1.52316669,111390.0,111380.0,0.17492216]
[1757469998938,1.67428669,111390.0,111380.0,0.0004644]
[1757469999165,1.67428669,111390.0,111380.0,0.17492216]
[1757469999425,1.67428669,111390.0,111380.0,0.17703216]
[1757470000211,1.67428669,111390.0,111380.0,0.17492216]
[1757470002716,1.76620268,111390.0,111380.0,0.17492216]
[1757470006261,1.76620537,111390.0,111380.0,0.17492216]
[1757470007048,1.76628596,111390.0,111380.0,0.17492216]
[1757470007909,1.83532596,111390.0,111380.0,0.17492216]
[1757470008378,1.68420596,111390.0,111380.0,0.17492216]
[1757470008636,0.85191064,111390.0,111380.0,0.62424537]
[1757470008867,0.58998418,111390.0,111380.0,0.79870313]
[1757470009092,0.57312,111390.0,111380.0,0.79870313]
[1757470009791,0.57012,111390.0,111380.0,0.79870313]
[1757470010238,0.57012,111390.0,111380.0,0.96432301]
[1757470010486,0.57012,111390.0,111380.0,0.8997846]
[1757470010939,0.57012,111390.0,111380.0,0.80786861]
[1757470010940,0.74966933,111390.0,111380.0,0.80786861]
[1757470011163,0.57012,111390.0,111380.0,0.80786861]
[1757470011704,0.21904,111390.0,111380.0,0.80786861]
[1757470011946,0.22012,111390.0,111380.0,0.87240702]
[1757470012219,0.22012,111390.0,111380.0,0.8975336]
[1757470012409,0.22012,111390.0,111380.0,0.98944959]
[1757470012606,0.22012,111390.0,111380.0,0.99044959]
[1757470013018,0.22012,111390.0,111380.0,0.98944959]
[1757470013398,0.22012,111390.0,111380.0,0.99344959]
[1757470013785,0.22012,111390.0,111380.0,0.99144959]
[1757470014409,0.22012,111390.0,111380.0,0.92491118]
[1757470015212,0.22012,111390.0,111380.0,0.92791118]
[1757470015885,0.22012,111390.0,111380.0,0.93091118]
[1757470018111,0.06904,111390.0,111380.0,0.93091118]
[1757470018361,0.22008,111390.0,111380.0,0.93091118]
[1757470019002,0.22008,111390.0,111380.0,1.20041118]
[1757470020297,0.22008,111390.0,111380.0,0.93091118]
[1757470020519,0.21904,111410.0,111400.0,0.17953321]
[1757470020733,0.21904,111410.0,111400.0,0.83635788]
[1757470020734,0.37008,111410.0,111400.0,0.83635788]
[1757470020953,0.37008,111410.0,111400.0,0.83411372]
[1757470021365,0.55472709,111410.0,111400.0,0.35089552]
[1757470021572,0.17953321,111400.0,111380.0,0.50606112]
[1757470021788,0.151,111390.0,111380.0,0.92860289]
[1757470021995,0.151,111390.0,111380.0,1.27949841]
[1757470023484,0.151,111390.0,111380.0,1.27349841]
[1757470024900,0.17953321,111400.0,111390.0,0.17954933]
[1757470025072,0.17953321,111400.0,111390.0,0.53044485]
[1757470025073,0.33257321,111400.0,111390.0,0.53044485]
[1757470025443,0.15304,111400.0,111390.0,0.53044485]
[1757470026613,0.15613,111400.0,111390.0,0.53044485]
[1757470026825,0.33566321,111400.0,111390.0,0.17445776]
[1757470028140,0.32954933,111390.0,111380.0,0.0004644]
[1757470028342,0.32954933,111390.0,111380.0,0.34937992]
[1757470028520,0.33158933,111390.0,111380.0,0.34937992]
[1757470028767,0.33467933,111390.0,111380.0,0.0004644]
[1757470028971,0.33467933,111390.0,111380.0,0.34937992]
[1757470031414,0.48567933,111390.0,111380.0,0.35137992]
[1757470032339,0.48563933,111390.0,111380.0,0.53492537]
[1757470033447,0.15513,111390.0,111380.0,0.53492537]
[1757470033671,0.15,111390.0,111380.0,0.70261568]
[1757470033937,0.55904,111410.0,111390.0,0.17953763]
[1757470034163,0.83047411,111410.0,111400.0,0.53267289]
[1757470034383,0.21904,111410.0,111400.0,0.53352873]
[1757470034603,0.54951709,111410.0,111400.0,0.62325873]
[1757470035839,0.54951709,111410.0,111400.0,0.88140613]
[1757470035840,0.15,111410.0,111400.0,0.88140613]
[1757470036032,0.26602588,111430.0,111420.0,0.17950098]
[1757470036033,0.41602588,111430.0,111420.0,0.17950098]
[1757470036231,0.49944187,111430.0,111420.0,0.5284165]
[1757470036412,0.21904,111430.0,111420.0,0.5303965]
[1757470036656,0.21904,111430.0,111420.0,0.6232265]
[1757470036657,0.22068,111430.0,111420.0,0.6232265]
[1757470036849,0.22068,111430.0,111420.0,0.65722154]
[1757470037207,0.22072,111430.0,111420.0,0.8347793]
[1757470037426,0.22085911,111430.0,111420.0,0.8347793]
[1757470038297,0.22085911,111430.0,111420.0,0.66032154]
[1757470038570,0.22085911,111430.0,111420.0,0.8347793]
[1757470039016,0.15181911,111430.0,111420.0,0.85990588]
[1757470039234,0.15185911,111430.0,111420.0,1.01162588]
[1757470039438,0.00013911,111430.0,111420.0,1.08211611]
[1757470040281,0.00013911,111430.0,111420.0,1.08011611]
[1757470040491,0.00013911,111430.0,111420.0,1.1730321]
[1757470040937,0.00013911,111430.0,111420.0,1.1760321]
[1757470041156,0.00013911,111430.0,111420.0,1.1750321]
[1757470041814,0.00013911,111430.0,111420.0,1.1760321]
[1757470042472,0.00013911,111430.0,111420.0,1.1750321]
[1757470043814,0.00013911,111430.0,111420.0,1.1720321]
[1757470044663,0.00013911,111430.0,111420.0,1.1770321]
[1757470044875,0.00013911,111430.0,111420.0,1.1800321]
[1757470045294,0.09908156,111440.0,111430.0,0.52840039]
[1757470045603,0.09908156,111440.0,111430.0,0.6929907]
[1757470045812,0.46050181,111450.0,111430.0,0.6929907]
[1757470046021,0.15152,111440.0,111430.0,0.34605518]
[1757470046865,0.15152,111440.0,111430.0,0.35115518]
[1757470047074,0.26904,111450.0,111440.0,0.17946877]
[1757470047282,0.42052,111450.0,111440.0,0.61319728]
[1757470047494,0.42052,111450.0,111440.0,0.61095393]
[1757470047717,0.42263,111450.0,111440.0,0.61095393]
[1757470047946,0.2,111450.0,111440.0,0.88134169]
[1757470048153,0.30200918,111460.0,111450.0,0.17945266]
[1757470048372,0.30200918,111460.0,111450.0,0.44786283]
[1757470048580,0.30200918,111460.0,111450.0,0.44759968]
[1757470048811,0.30411918,111460.0,111450.0,0.44759968]
[1757470049226,0.48655574,111460.0,111450.0,0.32953369]
[1757470050122,0.48655574,111460.0,111450.0,0.29553865]
[1757470051897,0.48655574,111460.0,111450.0,0.29653865]
[1757470056467,0.48655574,111460.0,111450.0,0.41262464]
[1757470057308,0.30711918,111460.0,111450.0,0.41262464]
[1757470057481,0.30711918,111460.0,111450.0,0.51053464]
[1757470057482,0.30200918,111460.0,111450.0,0.51053464]
[1757470057696,0.30200918,111460.0,111450.0,0.59920254]
[1757470057905,0.30411918,111460.0,111450.0,0.59610254]
[1757470058111,0.00036918,111460.0,111450.0,1.0505419]
[1757470059379,0.00036918,111460.0,111450.0,1.07751284]
[1757470060204,0.00036918,111460.0,111450.0,1.07651284]
[1757470060633,0.00036918,111460.0,111450.0,1.07951284]
[1757470060992,0.00036918,111460.0,111450.0,1.07947284]
[1757470061477,0.00036918,111460.0,111450.0,1.07975284]
[1757470061689,0.00036918,111460.0,111450.0,0.93015284]
[1757470061865,0.00036918,111460.0,111450.0,1.08175284]
[1757470062728,0.00036918,111460.0,111450.0,1.07975284]
[1757470062935,0.00036918,111460.0,111450.0,1.08075284]
[1757470063365,0.00036918,111460.0,111450.0,1.40025284]
[1757470064013,0.00036918,111460.0,111450.0,1.40425284]
[1757470064516,0.00036918,111460.0,111450.0,1.46479125]
[1757470065099,0.00036918,111460.0,111450.0,1.46471125]
[1757470065322,0.00036918,111460.0,111450.0,1.31319125]
[1757470065738,0.00036918,111460.0,111450.0,1.46475125]
[1757470065982,0.00036918,111460.0,111450.0,1.31319125]
[1757470066190,0.00036918,111460.0,111450.0,1.46475125]
[1757470066613,0.00036918,111460.0,111450.0,1.31319125]
[1757470066785,0.00036918,111460.0,111450.0,1.46471125]
[1757470067944,0.00036918,111460.0,111450.0,1.47071125]
[1757470068611,0.00036918,111460.0,111450.0,1.52071125]
[1757470068819,0.99138436,111480.0,111470.0,0.29550646]
[1757470069028,0.9915236,111480.0,111470.0,0.5559899]
[1757470069241,0.98253878,111480.0,111470.0,0.6510499]
[1757470069667,0.97355396,111480.0,111470.0,0.67801402]
[1757470070079,0.96456914,111480.0,111470.0,0.67797402]
[1757470070381,0.96456914,111480.0,111470.0,0.67997402]
[1757470071598,0.96456914,111480.0,111470.0,0.94628402]
[1757470071754,0.96456914,111480.0,111470.0,1.06552001]
[1757470072166,0.95558432,111480.0,111470.0,1.53378704]
[1757470072591,0.9465995,111480.0,111470.0,1.53378704]
[1757470072796,0.9465995,111480.0,111470.0,1.53078704]
[1757470072995,0.93761468,111480.0,111470.0,1.53078704]
[1757470073200,0.93761468,111480.0,111470.0,1.55276704]
[1757470073564,0.92862986,111480.0,111470.0,1.53478704]
[1757470073743,0.92862986,111480.0,111470.0,1.53278704]
[1757470073978,0.91964504,111480.0,111470.0,1.53278704]
[1757470074798,0.91964504,111480.0,111470.0,1.53378704]
[1757470075335,0.91964504,111480.0,111470.0,1.53278704]
[1757470075790,0.91964504,111480.0,111470.0,1.52874704]
[1757470075998,0.91964504,111480.0,111470.0,1.41266105]
[1757470076211,0.91964504,111480.0,111470.0,1.17729907]
[1757470076422,0.91964504,111480.0,111470.0,1.41262105]
[1757470077872,0.91964504,111480.0,111470.0,1.40947105]
[1757470078067,0.91964504,111480.0,111470.0,1.41262105]
[1757470078802,0.91632178,111480.0,111470.0,1.41262105]
[1757470079353,0.91632178,111480.0,111470.0,1.47400946]
[1757470079553,0.91632178,111480.0,111470.0,1.41262105]
[1757470081429,0.91632178,111480.0,111470.0,1.41562105]
[1757470082570,0.91632178,111480.0,111470.0,1.49615992]
[1757470084894,0.91632178,111480.0,111470.0,1.49300992]
[1757470086739,0.92135178,111480.0,111470.0,1.16948794]
[1757470087007,0.91632178,111480.0,111470.0,1.40368992]
[1757470087242,0.91632178,111480.0,111470.0,1.22721992]
[1757470087469,0.91632178,111480.0,111470.0,1.26276704]
[1757470087694,0.79503266,111480.0,111470.0,1.36807188]
[1757470087880,0.79503266,111480.0,111470.0,1.33789362]
[1757470088129,0.79503266,111480.0,111470.0,1.44996978]
[1757470088787,0.79503266,111480.0,111470.0,1.33789362]
[1757470089209,0.78604829,111480.0,111470.0,1.33789362]
[1757470089675,0.77706392,111480.0,111470.0,1.33789362]
[1757470090088,0.76807955,111480.0,111470.0,1.33789362]
[1757470090503,0.75909518,111480.0,111470.0,1.33789362]
[1757470090931,0.75011081,111480.0,111470.0,1.33789362]
[1757470091355,0.74112644,111480.0,111470.0,1.33789362]
[1757470091573,0.73214207,111480.0,111470.0,1.33789362]
[1757470091980,0.23990668,111480.0,111470.0,1.38931979]
[1757470092209,0.23990668,111480.0,111470.0,1.73757776]
[1757470092420,0.23092231,111480.0,111470.0,1.73757776]
[1757470092860,0.22193794,111480.0,111470.0,1.73757776]
[1757470093279,0.18150825,111480.0,111470.0,1.73757776]
[1757470093683,0.17252388,111480.0,111470.0,1.73757776]
[1757470093886,0.14107856,111480.0,111470.0,1.73757776]
[1757470094047,0.13209419,111480.0,111470.0,1.73457776]
[1757470094455,0.1231118,111480.0,111470.0,1.73657776]
[1757470094876,0.11412941,111480.0,111470.0,1.73657776]
[1757470095069,0.10514702,111480.0,111470.0,1.74157776]
[1757470095627,0.09616463,111480.0,111470.0,1.73457776]
[1757470095800,0.09616463,111480.0,111470.0,1.73449776]
[1757470096044,0.08718224,111480.0,111470.0,1.73449776]
[1757470096235,0.08718224,111480.0,111470.0,1.74149776]
[1757470096563,0.07819985,111480.0,111470.0,1.59369776]
[1757470096781,0.06921746,111480.0,111470.0,1.74549776]
[1757470097013,0.06921746,111480.0,111470.0,1.74553776]
[1757470097224,0.06023507,111480.0,111470.0,1.74553776]
[1757470097644,0.0004,111490.0,111480.0,0.17940437]
[1757470097849,0.0004,111490.0,111480.0,1.03294497]
[1757470098052,0.0004,111490.0,111480.0,1.03285242]
[1757470099082,0.0004,111490.0,111480.0,1.0598124]
[1757470099497,0.0004,111490.0,111480.0,1.0638124]
[1757470101412,0.0004,111490.0,111480.0,1.20645095]
[1757470102044,0.50041554,111520.0,111510.0,0.32056868]
[1757470102260,0.50055472,111520.0,111510.0,1.03210593]
[1757470102459,0.50253472,111520.0,111510.0,1.03210593]
[1757470102691,0.50576472,111520.0,111510.0,1.03210593]
[1757470103336,0.50576472,111520.0,111510.0,0.94082573]
[1757470103568,0.50576472,111520.0,111510.0,1.05691172]
[1757470103750,0.50576472,111520.0,111510.0,1.02995593]
[1757470107503,0.50576472,111520.0,111510.0,1.09559433]
[1757470107722,0.50576472,111520.0,111510.0,1.09659433]
[1757470108242,0.50576472,111520.0,111510.0,1.36609433]
[1757470110442,0.50576472,111520.0,111510.0,1.42396077]
[1757470110649,0.50576472,111520.0,111510.0,1.27216077]
[1757470111063,0.50576472,111520.0,111510.0,1.09820834]
[1757470111266,0.50576472,111520.0,111510.0,1.42388077]
[1757470112138,0.50576472,111520.0,111510.0,1.42488077]
[1757470114529,0.50576472,111520.0,111510.0,1.36081081]
[1757470115754,0.50576472,111520.0,111510.0,0.69513838]
[1757470115975,1.05861474,111520.0,111510.0,0.4012325]
[1757470116194,1.05861474,111520.0,111510.0,0.3371384]
[1757470116396,1.23256717,111520.0,111510.0,0.4012325]
[1757470116870,1.16069717,111520.0,111510.0,0.4012325]
[1757470117101,1.16069717,111520.0,111510.0,0.4899004]
[1757470117649,0.98674474,111520.0,111510.0,0.4899004]
[1757470117859,1.16069717,111520.0,111510.0,0.4899004]
[1757470118381,1.16069717,111520.0,111510.0,0.4012325]
[1757470119309,0.98674474,111520.0,111510.0,0.4012325]
[1757470120959,1.16069717,111520.0,111510.0,0.4012325]
[1757470121110,0.98674474,111520.0,111510.0,0.4012325]
[1757470121423,1.16069717,111520.0,111510.0,0.4012325]
[1757470121596,1.16069717,111520.0,111510.0,0.49314849]
[1757470122841,1.16069717,111520.0,111510.0,0.4012325]
[1757470123489,0.98674474,111520.0,111510.0,0.57518493]
[1757470124258,1.16069717,111520.0,111510.0,0.4012325]
[1757470125727,0.98674474,111520.0,111510.0,0.57518493]
[1757470125960,0.83510474,111520.0,111510.0,0.57518493]
[1757470126184,0.65576472,111520.0,111510.0,0.84645703]
[1757470126425,0.65207472,111520.0,111510.0,0.84858703]
[1757470126626,0.65207472,111520.0,111510.0,0.94683703]
[1757470126865,0.65207472,111520.0,111510.0,0.94381703]
[1757470127086,0.65409472,111520.0,111510.0,0.94381703]
[1757470127317,0.65716472,111520.0,111510.0,0.84858703]
[1757470128426,0.65716472,111520.0,111510.0,1.00010703]
[1757470130162,0.83650474,111520.0,111510.0,1.00010703]
[1757470130584,0.98650474,111520.0,111510.0,0.4012325]
[1757470130889,0.98650474,111520.0,111510.0,0.57518493]
[1757470136846,0.83498474,111520.0,111510.0,0.57518493]
[1757470137059,0.98630474,111520.0,111510.0,0.57518493]
[1757470137872,0.98630474,111520.0,111510.0,0.4012325]
[1757470138074,0.98630474,111520.0,111510.0,0.57518493]
[1757470138701,0.98630474,111520.0,111510.0,0.66710092]
[1757470139765,1.16025717,111520.0,111510.0,0.3355941]
[1757470139948,1.3342096,111520.0,111510.0,0.0660941]
[1757470140184,1.3342096,111520.0,111510.0,0.05015963]
[1757470140446,1.42612559,111520.0,111510.0,0.05015963]
[1757470140662,0.83498474,111520.0,111510.0,0.22624206]
[1757470140854,0.80183472,111520.0,111510.0,0.36886391]
[1757470141067,0.80183472,111520.0,111510.0,0.53120801]
[1757470141270,0.98117474,111520.0,111510.0,0.53020801]
[1757470142264,0.80183472,111520.0,111510.0,0.52920801]
[1757470142430,0.80183472,111520.0,111510.0,0.52618801]
[1757470142632,0.98217474,111520.0,111510.0,0.52618801]
[1757470143025,0.98419474,111520.0,111510.0,0.52618801]
[1757470143241,0.83089474,111520.0,111510.0,0.52618801]
[1757470143447,0.98213474,111520.0,111510.0,0.68044801]
[1757470143646,0.80279472,111520.0,111510.0,0.94994801]
[1757470144063,0.98213474,111520.0,111510.0,0.94994801]
[1757470144339,0.98213474,111520.0,111510.0,0.88585391]
[1757470144806,0.80279472,111520.0,111510.0,0.88585391]
[1757470145015,0.50155472,111520.0,111510.0,1.17684891]
[1757470145237,0.50155472,111520.0,111510.0,1.59696336]
[1757470145669,0.50155472,111520.0,111510.0,1.66393953]
[1757470145863,0.50155472,111520.0,111510.0,1.69089532]
[1757470146107,0.38030561,111520.0,111510.0,1.69089532]
[1757470147549,0.38232561,111520.0,111510.0,1.36268289]
[1757470147752,0.71593563,111520.0,111510.0,0.5746101]
[1757470147956,0.71593563,111520.0,111510.0,0.58001378]
[1757470148172,0.71593563,111520.0,111510.0,0.40065767]
[1757470148382,0.71593563,111520.0,111510.0,0.5746101]
[1757470148724,0.71593563,111520.0,111510.0,0.66652609]
[1757470149405,0.71593563,111520.0,111510.0,0.8458822]
[1757470151310,0.71593563,111520.0,111510.0,0.8479322]
[1757470151968,0.71593563,111520.0,111510.0,0.8458822]
[1757470152532,0.71593563,111520.0,111510.0,0.5763822]
[1757470153166,0.71593563,111520.0,111510.0,0.3051101]
[1757470155073,0.71593563,111520.0,111510.0,0.13115767]
[1757470155307,0.88988806,111520.0,111510.0,0.06697617]
[1757470155513,0.71593563,111520.0,111510.0,0.06697617]
[1757470155746,0.17935611,111510.0,111500.0,0.83804113]
[1757470155931,0.15306,111510.0,111500.0,0.92995712]
[1757470156146,0.15599,111510.0,111500.0,0.94794007]
[1757470156358,0.15599,111510.0,111500.0,1.1218925]
[1757470156798,0.33534611,111510.0,111500.0,0.61548287]
[1757470156936,0.33534611,111510.0,111500.0,0.62282462]
[1757470157945,0.33534611,111510.0,111500.0,0.44887219]
[1757470158112,0.33534611,111510.0,111500.0,0.44345243]
[1757470158352,0.33534611,111510.0,111500.0,0.62487462]
[1757470159573,0.33534611,111510.0,111500.0,0.45092219]
[1757470159788,0.33534611,111510.0,111500.0,0.62487462]
[1757470161035,0.33534611,111510.0,111500.0,0.79882705]
[1757470163361,0.15599,111510.0,111500.0,0.89074304]
[1757470163571,0.15104,111510.0,111500.0,0.89074304]
[1757470164504,0.15104,111510.0,111500.0,1.04178304]